Cogmind - Beta 14 --- EXPLORER MODE // 2024.09.12 @ 20:01:25 Player: Wisdomtree Result: Self-destructed Performance ------------- Evolutions (2) 1000 Regions Visited (5) 1000 Robots Destroyed (31) 155 Value Destroyed (790) 790 Prototype IDs (26) 520 Alien Tech Used (0) 0 Bonus (39) 39 TOTAL SCORE: 3504 Bonus ------- Follower Combat Kills 39 Cogmind --------- Core Integrity 539/550 Matter 204/300 Energy 250/250 System Corruption 0% Temperature Cool (0) Movement Treading (162) Location -8/Materials Parts ------- > --- POWER (1) -------- Ion Engine > --- PROPULSION (4) --- Light Treads Light Treads Light Treads Armored Treads > --- UTILITY (5) ------ Medium Storage Unit Improved Sensor Array Signal Interpreter Targeting Computer > --- WEAPON (2) ------- Heavy Assault Rifle > --- INVENTORY (10) --- VTOL Module Structural Scanner Light Assault Rifle AWS/Gauss Rocket Launcher Makeshift Axe Peak State ------------ > --- POWER ------------ Ion Engine > --- PROPULSION ------- Light Treads Light Treads > --- UTILITY ---------- Medium Storage Unit Decoy Drone Bay > --- WEAPON ----------- Heavy Assault Rifle Makeshift Axe > --- INVENTORY -------- Ion Engine Light Treads VTOL Module Structural Scanner Signal Interpreter Light Assault Rifle Light Assault Rifle AWS/Gauss Rocket Launcher [Rating: 26] Favorites ----------- Power Ion Engine Engine Ion Engine Propulsion Light Treads Treads Light Treads Utility Medium Storage Unit Device Sensor Array Storage Medium Storage Unit Processor Signal Interpreter Protection Light Armor Plating Weapon Light Assault Rifle Ballistic Gun Light Assault Rifle Slashing Weapon Makeshift Axe Build | -11 -10 -10 -10 -9 -8 ------- Run | Yrd Mat Min Exi Min Mat Slots Evolved 5 | . 1 . . . 4 Power . | . . . . . . Propulsion 2 | . . . . . 2 Utility 3 | . 1 . . . 2 Weapon . | . . . . . . Parts Attached 31 | 8 7 1 . 10 5 Power 6 | 2 2 1 . . 1 Engine 6 | 2 2 1 . . 1 Core . | . . . . . . Reactor . | . . . . . . Propulsion 7 | 2 1 . . 2 2 Treads 7 | 2 1 . . 2 2 Leg . | . . . . . . Wheel . | . . . . . . Hover . | . . . . . . Flight . | . . . . . . Utility 12 | 3 2 . . 5 2 Device 3 | 1 . . . 1 1 Storage 1 | 1 . . . . . Processor 2 | . . . . 1 1 Hackware . | . . . . . . Protection 6 | 1 2 . . 3 . Artifact . | . . . . . . Weapon 6 | 1 2 . . 3 . Energy Gun . | . . . . . . Energy Cannon . | . . . . . . Ballistic Gun 5 | 1 2 . . 2 . Ballistic Cannon . | . . . . . . Launcher . | . . . . . . Special Weapon . | . . . . . . Impact Weapon . | . . . . . . Slashing Weapon 1 | . . . . 1 . Piercing Weapon . | . . . . . . Special Melee Weapon . | . . . . . . Unidentified Prototypes 1 | . . . . 1 . Parts Lost 6 | . . . . 3 3 Power 1 | . . . . . 1 Propulsion . | . . . . . . Utility 3 | . . . . 2 1 Weapon 2 | . . . . 1 1 Highest Loss Streak 2 | . . . . 2 2 To Critical Strikes . | . . . . . . Average Slot Usage (%) 97 | . 96 100 100 88 90 Engine 11 | . 11 12 12 12 7 Treads 25 | . 24 25 25 25 32 Device 9 | . 12 12 12 . 2 Storage 11 | . 12 12 12 12 8 Protection 11 | . 9 12 12 12 7 Ballistic Gun 24 | . 24 25 25 23 14 Peak Build Rating 26 | 6 8 9 10 26 19 Average Rating 9 | 5 7 8 9 9 16 On Entrance 7 | . 6 8 9 10 11 Naked Turns . | . . . . . . Heaviest Build 24 | 18 22 22 22 24 23 Greatest Support 80 | 40 40 40 40 40 80 Greatest Overweight (x) . | . . . . . . Average Overweight (x) . | . . . . . . Largest Inventory Capacity 10 | 10 10 10 10 10 10 Average Capacity 9 | 8 10 10 10 10 10 Most Carried 10 | 3 8 9 10 10 8 Average Carried 8 | 1 4 8 9 9 7 Final Capacity 10 | 10 10 10 10 10 10 Final Carried 10 | 3 8 9 10 9 7 Class Distribution -------------------- 80% | Hacker-Mutant 15% | Commander-Mutant 3% | Scavenger-Mutant Dominant Class ---------------- Hacker-Mutant | -10/Materials Hacker-Mutant | -10/Mines Hacker-Mutant | -10/Exiles Hacker-Mutant | -9/Mines Scavenger-Mutant | -8/Materials Resources | -11 -10 -10 -10 -9 -8 ----------- Run | Yrd Mat Min Exi Min Mat Matter Collected 901 | 193 315 62 . 297 34 Remotely . | . . . . . . Salvage Created 1400 | . 620 97 . 400 283 Parts 75 | . 37 5 . 21 12 Haulers Intercepted 3 | . 2 . . . 1 Recyclers Shooed 2 | . 2 . . . . Parts Field Recycled . | . . . . . . Retrieved Matter . | . . . . . . Parts Self-Destructed . | . . . . . . Prevented . | . . . . . . Kills | -11 -10 -10 -10 -9 -8 ------- Run | Yrd Mat Min Exi Min Mat Combat Hostiles Destroyed 30 | . 8 2 . 16 4 Guns 30 | . 8 2 . 16 4 Classes Destroyed 11 | . 5 1 . 5 . Worker 1 | . . . . 1 . Tunneler 1 | . . 1 . . . Hauler 3 | . 2 . . . 1 Recycler 3 | . 3 . . . . Watcher 4 | . 3 . . . 1 Swarmer 4 | . 4 . . . . Grunt 11 | . 4 2 . 1 4 Duelist 1 | . . . . 1 . Sentry 2 | . . . . 2 . Demolisher 1 | . . . . 1 . Assembled 11 | . . . . 11 . Best Kill Streak 6 | . 3 1 . 6 3 Combat Bots Only 6 | . 2 1 . 6 2 Max Kills in Single Turn 2 | . 1 1 . 2 1 Gunslinging 1 | . . . . 1 . Exploded . | . . . . . . Melee . | . . . . . . Uniques/NPCs Destroyed . | . . . . . . Combat | -11 -10 -10 -10 -9 -8 -------- Run | Yrd Mat Min Exi Min Mat Hostile Shots Fired 146 | . 29 17 . 60 40 Missed 45 | . 7 3 . 19 16 Damage Taken 1061 | . 171 131 . 508 251 Core 183 | . 18 27 . 127 11 Absorbed by Shields . | . . . . . . Ignored by Resistances 649 | . 112 80 . 308 149 Regen/Repaired (Parts) 37 | . 37 . . . . Core Remaining (%) 65 | 100 . . . 31 . Volleys Fired 128 | . 41 13 . 50 24 Largest 2 | . 2 2 . 2 2 Hottest 43 | . 40 40 . 43 43 Shots Fired 237 | . 76 26 . 92 43 Gun 237 | . 76 26 . 92 43 Cannon . | . . . . . . Launcher . | . . . . . . Special . | . . . . . . Kinetic 237 | . 76 26 . 92 43 Thermal . | . . . . . . Explosive . | . . . . . . Electromagnetic . | . . . . . . Robot Hit Streak 35 | . 20 16 . 28 35 Robot Miss Streak 3 | . 1 1 . 3 2 Penetration Max . | . . . . . . Secondary Targets 8 | . 1 . . 5 2 Max Gunslinging Chain 1 | . 1 . . 1 1 Shots Hit Robots 192 | . 62 24 . 67 39 Core Hits 89 | . 28 7 . 37 17 Critical Kills 1 | . . . . . 1 Critical Parts Destroyed 1 | . . . . 1 . Critical Strikes 2 | . . . . 1 1 Destroy 2 | . . . . 1 1 Melee Attacks 2 | . . . . 2 . Impact . | . . . . . . Slashing 2 | . . . . 2 . Piercing . | . . . . . . Sneak Attacks . | . . . . . . Combat Hostiles . | . . . . . . Follow-up Attacks . | . . . . . . Damage Inflicted 2005 | . 636 266 . 664 439 Guns 1991 | . 636 252 . 664 439 Cannons . | . . . . . . Explosions . | . . . . . . Melee . | . . . . . . Ramming 14 | . . 14 . . . Kinetic 1991 | . 636 252 . 664 439 Thermal . | . . . . . . Explosive . | . . . . . . Electromagnetic . | . . . . . . Impact . | . . . . . . Slashing . | . . . . . . Piercing . | . . . . . . Highest Corruption 5 | . . . . 5 . Average Corruption 4 | . . . . 4 . Corruption Purged . | . . . . . . Corruption Blocked . | . . . . . . Effects 19 | . . . . 19 . Message Errors 5 | . . . . 5 . Matter Fused 5 | . . . . 5 . Heat Flow Errors 3 | . . . . 3 . Energy Discharges 1 | . . . . 1 . Data Loss (minor) 1 | . . . . 1 . Data Loss (major) 1 | . . . . 1 . Alerts 1 | . . . . 1 . Weapon Failures 2 | . . . . 2 . Overload Shots . | . . . . . . Overflow Damage . | . . . . . . Projectiles . | . . . . . . Explosions . | . . . . . . Melee . | . . . . . . Knockbacks . | . . . . . . Impact . | . . . . . . Kinetic . | . . . . . . Secondary . | . . . . . . Self-Inflicted Damage . | . . . . . . Shots . | . . . . . . Rammed 2 | . . 2 . . . Targets Rammed 2 | . . 2 . . . Kicked . | . . . . . . Crushed . | . . . . . . Highest Temperature 138 | . 7 25 . 138 14 Average Temperature 23 | . 4 7 . 44 5 Received Heat Transfer 734 | . 78 156 . 284 216 Siege Activations . | . . . . . . Robots Corrupted . | . . . . . . Combat Hostiles . | . . . . . . Parts Fried . | . . . . . . Impact Corruptions . | . . . . . . Robots Melted . | . . . . . . Combat Hostiles . | . . . . . . Parts Melted . | . . . . . . Heat Transferred . | . . . . . . Parts Sabotaged . | . . . . . . Parts Stolen . | . . . . . . Parts Stripped . | . . . . . . Power Chain Reactions . | . . . . . . Alert | -11 -10 -10 -10 -9 -8 ------- Run | Yrd Mat Min Exi Min Mat Peak Influence 154 | . 154 63 . 107 132 Initial 29 | . . 13 . . 29 Average 41 | . 70 19 . 39 65 Maximum Alert Level . | . . . . . . Low Security (%) 100 | 100 100 100 . 100 100 Level 1 . | . . . . . . Level 2 . | . . . . . . Level 3 . | . . . . . . Level 4 . | . . . . . . Level 5 . | . . . . . . High Security . | . . . . . . Max Security . | . . . . . . Squads Dispatched . | . . . . . . Investigation . | . . . . . . Extermination . | . . . . . . Reinforcement . | . . . . . . Assault . | . . . . . . Garrison . | . . . . . . Intercept . | . . . . . . Searches Triggered . | . . . . . . Construction Impeded . | . . . . . . Haulers Reinforced . | . . . . . . Active Scanning Responses . | . . . . . . Cargo Convoy Interrupts . | . . . . . . Stealth | -11 -10 -10 -10 -9 -8 --------- Run | Yrd Mat Min Exi Min Mat Distress Signals 2 | . 1 . . . 1 Communications Jammed . | . . . . . . Distress Signals . | . . . . . . Times Spotted 42 | . 12 2 . 23 5 Peak Tracking Total 8 | . 2 2 . 8 3 Tactical Retreats 1 | . . . . 1 . Traps | -11 -10 -10 -10 -9 -8 ------- Run | Yrd Mat Min Exi Min Mat Traps Triggered 2 | . 2 . . . . Indirectly . | . . . . . . Trap Hack Attempts . | . . . . . . Triggered . | . . . . . . Disarmed . | . . . . . . Reprogrammed . | . . . . . . Reused . | . . . . . . Traps Extracted . | . . . . . . Installed . | . . . . . . Triggered . | . . . . . . Machines | -11 -10 -10 -10 -9 -8 ---------- Run | Yrd Mat Min Exi Min Mat Machines Disabled . | . . . . . . Max in Single Turn . | . . . . . . Machines Repaired . | . . . . . . Machines Dismantled . | . . . . . . Machines Sabotaged . | . . . . . . Overloaded Fab Kills . | . . . . . . Hacking | -11 -10 -10 -10 -9 -8 --------- Run | Yrd Mat Min Exi Min Mat Machines Accessed 11 | . 8 . 1 1 1 Terminals 5 | . 5 . . . . Fabricators . | . . . . . . Repair Stations 1 | . 1 . . . . Recycling Units 2 | . 2 . . . . Scanalyzers 1 | . . . . . 1 Garrison Access . | . . . . . . Total Hacks 24 | . 19 . 1 1 3 Successful 19 | . 14 . 1 1 3 Failed 5 | . 5 . . . . Catastrophic 1 | . 1 . . . . Database Lockouts . | . . . . . . Manual 12 | . 10 . 2 . . Terminals 15 | . 15 . . . . Fabricators . | . . . . . . Repair Stations 2 | . 2 . . . . Recycling Units 2 | . 2 . . . . Scanalyzers 3 | . . . . . 3 Garrison Access . | . . . . . . Terminal Hacks 12 | . 10 . 1 1 . Record 1 | . 1 . . . . Prototype ID Bank 1 | . 1 . . . . Open Door 1 | . . . . 1 . Emergency Access Points 1 | . 1 . . . . Terminal Index 1 | . 1 . . . . Locate Traps 1 | . 1 . . . . Transport Status 1 | . 1 . . . . Hauler Manifests 2 | . 2 . . . . Registered Prototypes 1 | . 1 . . . . Zone Layout 1 | . 1 . . . . Derelict Proto ID Bank 1 | . . . 1 . . Fabricator Hacks . | . . . . . . Repair Station Hacks 2 | . 2 . . . . Scan Component 1 | . 1 . . . . Repair 1 | . 1 . . . . Recycling Unit Hacks 2 | . 2 . . . . Report Inventory 2 | . 2 . . . . Scanalyzer 3 | . . . . . 3 Insert Component 2 | . . . . . 2 Analyze 1 | . . . . . 1 Garrison Access Hacks . | . . . . . . Unauthorized Hacks . | . . . . . . Terminals . | . . . . . . Fabricators . | . . . . . . Repair Stations . | . . . . . . Recycling Units . | . . . . . . Scanalyzers . | . . . . . . Garrison Access . | . . . . . . Data Cores Recovered . | . . . . . . Used . | . . . . . . Hacking Detections 8 | . 7 . . . 1 Full Trace Events 1 | . . . . . 1 Feedback Events . | . . . . . . Feedback Blocked . | . . . . . . Robot Schematics Acquired . | . . . . . . Robots Built . | . . . . . . Authchips . | . . . . . . Time . | . . . . . . Total Robot Build Rating . | . . . . . . Part Schematics Acquired 1 | . . . . . 1 Parts Built . | . . . . . . Authchips . | . . . . . . Time . | . . . . . . Total Part Build Rating . | . . . . . . Parts Repaired 1 | . 1 . . . . Time 26 | . 26 . . . . Parts Recycled . | . . . . . . Recycled Matter . | . . . . . . Retrieved Matter . | . . . . . . Retrieved Components . | . . . . . . Parts Scanalyzed 1 | . . . . . 1 Part Schematics Acquired 1 | . . . . . 1 Parts Damaged . | . . . . . . Bothacking | -11 -10 -10 -10 -9 -8 ------------ Run | Yrd Mat Min Exi Min Mat Used RIF Installer . | . . . . . . Robots Hacked . | . . . . . . Non-combat . | . . . . . . Combat . | . . . . . . Robot Hacks Applied . | . . . . . . Relay Couplers Released . | . . . . . . Fabnet Peak Effective % . | . . . . . . Robots Rewired 5 | . . . 5 . . Allies Hacked . | . . . . . . Hacks Repelled . | . . . . . . Allies | -11 -10 -10 -10 -9 -8 -------- Run | Yrd Mat Min Exi Min Mat Total Allies 8 | . . 3 5 . . Largest Group 8 | . . 3 8 8 . Highest-Rated Group 106 | . . 40 106 106 . Highest-Rated Ally 21 | . . 16 21 21 . Total Orders . | . . . . . . Ally Attacks 62 | . . . . 62 . Total Damage 636 | . . . . 636 . Kills 10 | . . . . 10 . Allies Corrupted . | . . . . . . Allies Melted . | . . . . . . Intel | -11 -10 -10 -10 -9 -8 ------- Run | Yrd Mat Min Exi Min Mat Robot Analysis Total . | . . . . . . Derelict Logs Recovered 3 | . . 2 . 1 . Drone Launches . | . . . . . . Drone Recoveries . | . . . . . . Exploration | -11 -10 -10 -10 -9 -8 ------------- Run | Yrd Mat Min Exi Min Mat Turns Passed 4610 | 129 862 1009 1699 772 139 Spaces Moved 2530 | 42 437 603 1027 380 41 Core 3 | 3 . . . . . Treads 2527 | 39 437 603 1027 380 41 Legs . | . . . . . . Wheels . | . . . . . . Hover . | . . . . . . Flight . | . . . . . . Fastest Speed 50 | 50 160 160 160 160 160 Average Speed 159 | 152 160 160 160 160 161 Slowest Speed 162 | 160 160 160 160 160 162 Overloaded Moves . | . . . . . . Propulsion Burnouts . | . . . . . . Robots Hopped . | . . . . . . Cave-ins Triggered . | . . . . . . Exploration Rate (%) 59 | 4 88 98 93 68 5 Regions Visited 5 Branch Regions 3 Pre-discovered Areas 1 | . . 1 . . . Known Exits Taken 5 | 1 1 1 1 1 . Unknown Exits Taken . | . . . . . . Scrap Searched 2 | . . 1 . 1 . Spaces Dug 2 | . . . . 2 . Terrain Destroyed 2 | . . . . 2 . Melee 2 | . . . . 2 . Projectile . | . . . . . . AOE . | . . . . . . Terrain Rammed . | . . . . . . Walls Destroyed . | . . . . . . Machines Disabled . | . . . . . . Actions | -11 -10 -10 -10 -9 -8 --------- Run | Yrd Mat Min Exi Min Mat Total 2873 | 104 530 624 1084 458 73 Wait 103 | 52 36 2 . 10 3 Move 2525 | 41 436 602 1026 379 41 Hop . | . . . . . . Pick Up 14 | 1 8 2 2 1 . Fast Attach 21 | 8 4 . . 6 3 Attach 9 | . 3 1 . 3 2 Detach 6 | 2 1 1 . 2 . Swap 1 | . . . . 1 . Drop 8 | . 1 1 2 4 . Fire 128 | . 41 13 . 50 24 Melee 2 | . . . . 2 . Ram . | . . . . . . Kick . | . . . . . . Crush 2 | . . 2 . . . Escape Stasis . | . . . . . . Rewire 54 | . . . 54 . . Trap . | . . . . . . Miscellaneous . | . . . . . . Route ------- -11/Scrapyard -10/Materials (discovered 4 exits: *Mat x3 / *Min) -10/Mines (discovered 3 exits: *Mat x2 / *Exi) -10/Exiles (discovered 2 exits: *Min x2) -9/Mines -8/Materials (discovered 1 exit: Sto) History --------- Turn | Location | Event 12 | -11/Scrapyard | Identified exit to Materials 12 | -11/Scrapyard | Discovered exit to Materials (range 15) 130 | -11/Scrapyard | Entered Materials 130 | -10/Materials | Evolved 1 slot: Utility x1 293 | -10/Materials | Identified exit to Materials 293 | -10/Materials | Discovered exit to Materials (range 11) 302 | -10/Materials | Build established: Hacker-Mutant 592 | -10/Materials | Discovered exit to Materials (range 7) 779 | -10/Materials | Repaired Lgt. Armor Plating 790 | -10/Materials | Discovered exit to Materials (range 11) 946 | -10/Materials | Identified exit to Mines 946 | -10/Materials | Discovered exit to Mines (range 6) 992 | -10/Materials | Entered Mines 1044 | -10/Mines | Found a hidden stash of uninstalled traps 1349 | -10/Mines | Received a Rocket Launcher from a helpful Derelict 1558 | -10/Mines | Assisted by bots powering up and referring to "LRC-V3" 1617 | -10/Mines | Learned Materials trap positions 1629 | -10/Mines | Learned location of Storage (-8) 1684 | -10/Mines | Discovered exit to Materials (range 8) 1840 | -10/Mines | Learned location of 1 exit from Materials 1872 | -10/Mines | Deemed a non-threat by the Exiles lab entrance 1872 | -10/Mines | Identified exit to Exiles 1872 | -10/Mines | Discovered exit to Exiles (range 5) 1907 | -10/Mines | Discovered exit to Materials (range 9) 2001 | -10/Mines | Entered Exiles 2001 | -10/Exiles | Found Exiles lab destroyed 2001 | -10/Exiles | Accompanied by 3 allies 2027 | -10/Exiles | Identified exit to Mines 2027 | -10/Exiles | Discovered exit to Mines (range 15) 2463 | -10/Exiles | Discovered exit to Mines (range 12) 3109 | -10/Exiles | Opened EX-Vault 3116 | -10/Exiles | Found AWS/Gauss 3326 | -10/Exiles | Build established: Commander-Mutant 3700 | -10/Exiles | Entered Mines 3700 | -9/Mines | Accompanied by 8 allies 3701 | -9/Mines | Assembled infested the area 3706 | -9/Mines | Assisted by a Guerilla fighting off Assembled 3794 | -9/Mines | Core integrity fell below 50% 3805 | -9/Mines | Lost 8 allies 3898 | -9/Mines | Identified exit to Materials 4037 | -9/Mines | Build established: Hacker-Mutant 4440 | -9/Mines | Found the Drone Emporium 4447 | -9/Mines | Found Prototype Device 4447 | -9/Mines | Identified Decoy Drone Bay 4472 | -9/Mines | Entered Materials 4472 | -8/Materials | Evolved 4 slots: Propulsion x2, Utility x2 4473 | -8/Materials | Identified exit to Storage 4474 | -8/Materials | Loaded intel: 19 trap records 4611 | -8/Materials | Self-destructed Last Messages --------------- 04554_ Ion Engine destroyed. 04558_ G-47 Trooper destroyed. 04558_ Switching to secondary target: G-47 Trooper. 04560_ G-47 Trooper suffers critical hit (Destroy). 04560_ G-47 Trooper destroyed. 04568_ Acquired Imp. Sensor Array. 04569_ C-30 ARC bursts open, deploying its payload. 04569_ G-50 Soldier unfolds itself. 04569_ G-47 Trooper unfolds itself. 04585_ G-47 Trooper destroyed. 04585_ Switching to secondary target: G-50 Soldier. 04590_ A-02 Transporter destroyed. 04599_ Lgt. Assault Rifle destroyed. 04603_ Lgt. Armor Plating destroyed. 04603_ Destroyed Unknown Engine. 04609_ G-50 Soldier destroyed. Map ----- +----------------------------------------------------+ | ?????????????????????????????????????????????????? | | ?????????????????????????????????????????????????? | | ?????????????????????????????????????????????????? | | ?????????????????????????????????????????????????? | | ?????????????????????????????????????????????????? | | ?????????????????????????????????????????????????? | | ?????????????????????????????????????????????????? | | ???????????????????^?????????????????????????????? | | ?????????????????????????????????????????????????? | | ?????????????????????????????????????????????????? | | ?????????????????????????????????????????????????? | | ?????????????????????????????????????????????????? | | ????????????????????????####?????????????????????? | | ???????????????????????# ?????????????????????? | | ???????????????????????# ?????????????????????? | | ??????????????????x????# u?????????????????????? | | ???????????????????????# #?????????????????????? | | ???????????????????????# #?????????????????????? | | ???????????????# ??????# #?????????????????????? | | ???????????????# %????## ##????????????????????? | | ???????????????# #### #????????????????????? | | ????????????????? a%[ * #????????????????????? | | ??????????????????? [!=%T +????????????????????? | | ????????????????????x%!!!=%=#????????????????????? | | ??????????????????????#%!!= #????????????????????? | | ???????????????????????#%@ #?????????????????????? | | ???????????????????????#! #?????????????????????? | | ???????????????????????# #?????????????????????? | | ???????????????????????# #?????????????????????? | | ???????????????????????# #?????????????????????? | | ???????????????????????# #?????????????????????? | | ???????????????????????# #?????????????????????? | | ?????????????x?????????# #?????????????????????? | | ????????????# ?????????# #?????????????????????? | | ????????????# ######## ####??????????????????? | | ????????????# #??????????????????? | | ????????????# #??????????????????? | | ??????? #??????????????????? | | ??????????#############+### #??????????????????? | | ????????????????# % # #??????????????????? | | ????????????????# !# #??????????????????? | | ????????????????# """ !!/# #??????????????????? | | ????????????????# """ !//#####??????????????????? | | ????????????????# "S #??????????????????????? | | ????????????????# """ #??????????????????????? | | ????????????????# "" #??????????????????????? | | ????????????????# #??????????????????????? | | ????????????????###########??????????????????????? | | ?????????????????????????????????????????????????? | | | +----------------------------------------------------+ Best States ------------- Heat Dissipation 31 Energy Generation 10 Energy Capacity 250 Matter Stores 300 Matter Capacity 300 Sight Range 16 Robot Scan Range 15 Terrain Scan Density 10 Armor Coverage 300 Resistance: KI 35 Resistance: TH 35 Resistance: EX 35 Resistance: EM 35 Resistance: I 35 Resistance: S 35 Resistance: P 35 Evasion (%) 40 Targeting Accuracy 5 Recoil Reduction 4 Offensive Hacking 20 Item Schematics ----------------- Rocket Launcher | -8/Materials | Scanalyzed Robot Schematics ------------------ None Fabricated ------------ Nothing Alien Tech Used ----------------- None Achievements -------------- A New Friend Challenges ------------ None Game ------ Seed wisdomtree Manual? 1 Play Time 00:49:20 Cumulative 19.1 hours Start 2024.09.12 @ 19:08:17 End 2024.09.12 @ 20:01:25 Sessions 1 Manual Loads 0 Difficulty Explorer Special Mode None Game No. 8 Rogue 0 Adventurer 0 Explorer 8 Win Type - Total 0 Types 0/0/0/0/0/0/0/0/0 Lore% 10 Gallery% 17 Achievement% 20 Wizard Run 0 Options --------- Layout 1 ASCII 0 Keyboard 1 Movement Numpad Keybinds 0 Fullscreen 1 Font 32/SmallcapsGlow Map View 50x40 Zoom Use 0% Tactical HUD 1 Map Filters NONE Filters NONE Steam 1 RUN: 4921f59e-a92b-4c2b-82c4-27bfabc76abe